[Event "SVK-ch Open 2018"]
[Site "Banska Stiavnica"]
[Date "2018.07.11"]
[Round "5"]
[White "Dylag, Emilia"]
[Black "Franzen, Jozef"]
[Result "0-1"]
[ECO "A45"]
[WhiteElo "1935"]
[BlackElo "2256"]
[Annotator "NA"]
[PlyCount "112"]
[EventDate "2018.07.07"]
[EventType "swiss"]
[EventCountry "SVK"]
[SourceTitle "playchess.com"]
[Source "ChessBase"]
[SourceQuality "1"]
[TimeControl "40/5400+30:1800+30"]

1. d4 {[%emt 0:00:00]} Nf6 {[%emt 0:00:00]} 2. Bf4 {[%emt 0:00:00]} g6 {[%emt 0:00:00]} 3. Nc3 {[%emt 0:00:00]} d5 {[%emt 0:00:15]} 4. e3 {[%emt 0:00:16]} Bf5 {[%emt 0:00:50]} 5. h4 {[%emt 0:00:51]} h5 {[%emt 0:01:27]} 6. Nf3 {[%emt 0:00:51]} c6 {[%emt 0:00:36]} 7. Bd3 {[%emt 0:01:24]} e6 {[%emt 0:00:51]} 8. Qe2 {[%emt 0:09:07]} Bg7 {[%emt 0:00:31]} 9. O-O-O {[%emt 0:02:14]} O-O {[%emt 0:00:25]} 10. Ne5 {[%emt 0:02:12]} Nfd7 {[%emt 0:03:16]} 11. e4 {[%emt 0:12:22]} dxe4 {[%emt 0:00:22]} 12. Bxe4 {[%emt 0:00:22]} Bxe4 {[%emt 0:04:34]} ({Günstiger ist} 12... Nxe5 $14 13. dxe5 Qc7) 13. Qxe4 $14 {[%emt 0:02:04]} (13. Nxe4 $18 Qa5 14. Kb1) 13... Nf6 {[%emt 0:00:29]} 14. Qe2 {[%emt 0:02:17]} Nd5 {[%emt 0:06:46]} 15. Nxd5 {[%emt 0:01:41]} Qxd5 {[%emt 0:00:29]} 16. c4 {[%emt 0:02:07]} Qa5 {[%emt 0:00:48]} 17. Kb1 {[%emt 0:00:55]} c5 {[%emt 0:01:26]} 18. d5 {[%emt 0:03:46]} exd5 {[%emt 0:00:16]} 19. Rxd5 {[%emt 0:02:49]} Nc6 {[%emt 0:01:30]} 20. Nxc6 {[%emt 0:22:32]} bxc6 {[%emt 0:00:03]} 21. Rd7 {[%emt 0:04:51]} Rae8 {[%emt 0:05:49]} 22. Qc2 {[%emt 0:01:35]} Re6 {[%emt 0:03:14]} 23. Rhd1 {[%emt 0:08:56]} Bd4 {[%emt 0:01:57]} 24. Bd2 {[%emt 0:03:38]} Qb6 {[%emt 0:05:57]} 25. Bc3 {[%emt 0:01:29]} Rd8 {[%emt 0:01:42]} 26. Rxd8+ {[%emt 0:01:52]} Qxd8 {[%emt 0:00:01]} 27. g3 {[%emt 0:04:08]} Qf6 {[%emt 0:03:26]} 28. Bxd4 {[%emt 0:00:29]} cxd4 {[%emt 0:00:02]} 29. c5 {[%emt 0:00:22]} Re7 {[%emt 0:00:24]} 30. Qd3 {[%emt 0:03:21]} Rd7 {[%emt 0:02:19]} 31. f4 {[%emt 0:00:37]} Rd5 {[%emt 0:00:48]} 32. b4 {[%emt 0:00:49]} Qe7 {[%emt 0:01:09]} 33. Kc2 {[%emt 0:00:55]} a5 {[%emt 0:01:56]} 34. a3 {[%emt 0:00:31]} Rd8 {[%emt 0:02:39]} 35. Qc4 {[%emt 0:02:15]} Qe4+ {[%emt 0:02:51]} 36. Qd3 {[%emt 0:00:07]} Qe6 {[%emt 0:00:28]} 37. Kb2 {[%emt 0:00:32]} axb4 {[%emt 0:03:31]} 38. axb4 {[%emt 0:00:30]} Qd5 {[%emt 0:04:54]} 39. Rd2 {[%emt 0:00:59]} Kg7 {[%emt 0:08:06]} 40. Qb3 {[%emt 0:00:53]} Qe4 {[%emt 0:00:40]} 41. Qd3 {[%emt 0:31:41]} Qe6 {[%emt 0:31:09]} 42. Re2 {[%emt 0:00:42]} Qh3 {[%emt 0:02:25]} 43. Re4 {[%emt 0:01:09]} Qg2+ {[%emt 0:00:54]} 44. Re2 {[%emt 0:00:11]} Qg1 {[%emt 0:00:40]} 45. Re4 {[%emt 0:00:00]} Rd7 {[%emt 0:00:00]} 46. Kb3 {[%emt 0:00:00]} Qf2 {[%emt 0:00:00]} 47. Kc4 {[%emt 0:00:00]} Qa2+ {[%emt 0:00:00]} 48. Qb3 {[%emt 0:00:00]} Qa1 {[%emt 0:00:00]} 49. Re2 {[%emt 0:00:00]} d3 {[%emt 0:00:00]} 50. Rb2 {[%emt 0:00:00]} Kh7 {[%emt 0:00:00]} 51. b5 {[%emt 0:00:12]} d2 {[%emt 0:00:00]} 52. bxc6 {[%emt 0:00:57]} d1=Q {[%emt 0:00:00]} 53. cxd7 {[%emt 0:00:32]} Qxd7 {[%emt 0:00:00]} 54. Qb6 {[%emt 0:02:04]} Qc1+ {[%emt 0:00:00]} 55. Kb3 {[%emt 0:00:25]} Qd5+ {[%emt 0:00:00]} 56. Ka4 {[%emt 0:00:27]} Qa1+ {[%emt 0:00:00]} 0-1

[Event "SVK-ch Open 2018"]
[Site "Banska Stiavnica"]
[Date "2018.07.11"]
[Round "5"]
[White "Kucera, Michal"]
[Black "Sikora, Jan"]
[Result "0-1"]
[ECO "B94"]
[WhiteElo "1921"]
[BlackElo "2209"]
[Annotator "NA"]
[PlyCount "60"]
[EventDate "2018.07.07"]
[EventType "swiss"]
[EventCountry "SVK"]
[SourceTitle "playchess.com"]
[Source "ChessBase"]
[SourceQuality "1"]
[TimeControl "40/5400+30:1800+30"]

1. e4 {[%emt 0:00:00]} c5 {[%emt 0:00:00]} 2. Nf3 {[%emt 0:00:00]} d6 {[%emt 0:00:00]} 3. d4 {[%emt 0:00:00]} cxd4 {[%emt 0:00:00]} 4. Nxd4 {[%emt 0:00:00]} Nf6 {[%emt 0:00:00]} 5. Nc3 {[%emt 0:00:06]} a6 {[%emt 0:00:00]} 6. Bg5 {[%emt 0:01:28]} Nbd7 {[%emt 0:00:11]} 7. Qd2 {[%emt 0:05:08]} e6 $11 {[%emt 0:07:02] LiveBook: 49 Partien} 8. O-O-O {[%emt 0:02:24]} Be7 {[%emt 0:08:14]} 9. f4 {[%emt 0:03:39]} Qc7 {[%emt 0:06:31]} 10. Bd3 {[%emt 0:08:41]} h6 {[%emt 0:06:35]} 11. Bxf6 {[%emt 0:07:04]} Bxf6 {[%emt 0:00:07]} 12. Be2 {[%emt 0:02:29]} Be7 {[%emt 0:07:33]} 13. f5 {[%emt 0:08:09]} Bg5 {[%emt 0:02:18]} 14. fxe6 {[%emt 0:00:24]} Nf6 {[%emt 0:06:10]} 15. Qxg5 {[%emt 0:07:15]} hxg5 {[%emt 0:00:02]} 16. Nf5 {[%emt 0:01:05]} Bxe6 {[%emt 0:08:30]} 17. Nxd6+ {[%emt 0:00:24]} Kf8 {[%emt 0:00:17]} 18. e5 {[%emt 0:01:10]} Ne8 {[%emt 0:03:43]} 19. Nce4 {[%emt 0:03:29]} Nxd6 {[%emt 0:01:04]} 20. exd6 {[%emt 0:01:19]} Qa5 {[%emt 0:02:39]} 21. a3 {[%emt 0:05:25]} Qe5 {[%emt 0:05:08]} 22. Bd3 {[%emt 0:01:40]} f5 {[%emt 0:02:06]} 23. Ng3 {[%emt 0:01:17]} Rd8 {[%emt 0:04:28]} 24. Nxf5 {[%emt 0:05:10]} Qf4+ {[%emt 0:09:29]} 25. Kb1 {[%emt 0:01:42]} Bxf5 {[%emt 0:00:03]} 26. g3 {[%emt 0:00:48]} Qg4 {[%emt 0:01:01]} 27. Rdf1 {[%emt 0:05:01]} g6 {[%emt 0:00:54]} 28. Rf2 {[%emt 0:00:39]} Rxd6 {[%emt 0:01:45]} 29. Be2 {[%emt 0:03:10]} Qe4 {[%emt 0:01:24]} 30. Rhf1 {[%emt 0:02:39]} Qxc2+ {[%emt 0:00:44]} 0-1

[Event "SVK-ch Open 2018"]
[Site "Banska Stiavnica"]
[Date "2018.07.11"]
[Round "5"]
[White "Gresova, Zuzana"]
[Black "Volcko, Richard"]
[Result "0-1"]
[ECO "C45"]
[WhiteElo "1920"]
[BlackElo "2068"]
[Annotator "NA"]
[PlyCount "90"]
[EventDate "2018.07.07"]
[EventType "swiss"]
[EventCountry "SVK"]
[SourceTitle "playchess.com"]
[Source "ChessBase"]
[SourceQuality "1"]
[TimeControl "40/5400+30:1800+30"]

1. e4 {[%emt 0:00:00]} e5 {[%emt 0:00:00]} 2. Nf3 {[%emt 0:00:00]} Nc6 {[%emt 0:00:00]} 3. d4 {[%emt 0:00:00]} exd4 {[%emt 0:00:00]} 4. Nxd4 {[%emt 0:00:05]} Nf6 {[%emt 0:00:00]} 5. Nxc6 {[%emt 0:00:59]} bxc6 {[%emt 0:00:06]} 6. e5 {[%emt 0:00:36]} Qe7 {[%emt 0:00:13]} 7. Qe2 {[%emt 0:00:59]} Nd5 {[%emt 0:00:13]} 8. c4 {[%emt 0:01:40]} Nb6 {[%emt 0:00:11]} 9. Nc3 {[%emt 0:02:23]} Ba6 {[%emt 0:00:31]} 10. Qe4 {[%emt 0:05:50]} Qe6 {[%emt 0:02:47]} 11. b3 {[%emt 0:08:08]} O-O-O {[%emt 0:04:27]} 12. Bd3 {[%emt 0:14:13]} Re8 {[%emt 0:08:02]} 13. f4 {[%emt 0:04:35]} f6 {[%emt 0:05:18]} 14. O-O {[%emt 0:07:53]} fxe5 {[%emt 0:08:20]} 15. fxe5 {[%emt 0:02:09]} Qxe5 {[%emt 0:01:28]} 16. Qxe5 {[%emt 0:03:55]} Rxe5 {[%emt 0:00:09]} 17. Bf4 {[%emt 0:00:47]} Re8 {[%emt 0:10:30]} 18. Rad1 {[%emt 0:03:28]} Bc5+ {[%emt 0:03:59]} 19. Kh1 {[%emt 0:00:24]} Bd4 {[%emt 0:02:46]} 20. Ne4 {[%emt 0:03:44]} c5 {[%emt 0:03:41]} 21. Ng5 {[%emt 0:01:29]} h6 {[%emt 0:03:01]} 22. Nf3 {[%emt 0:01:53]} Rhf8 {[%emt 0:02:42]} 23. Bg3 {[%emt 0:02:38]} Bc3 {[%emt 0:09:17]} 24. Kg1 {[%emt 0:02:30]} Bb7 {[%emt 0:07:08]} 25. Rc1 {[%emt 0:03:04]} Bf6 {[%emt 0:03:09]} 26. a4 {[%emt 0:08:52]} Re3 {[%emt 0:04:56]} 27. Rcd1 {[%emt 0:01:40]} d6 {[%emt 0:02:50]} 28. Bf2 {[%emt 0:05:47]} Ree8 {[%emt 0:04:58]} 29. Bf5+ {[%emt 0:02:18]} Kb8 {[%emt 0:00:33]} 30. Rd3 {[%emt 0:02:16]} Nc8 {[%emt 0:01:37]} 31. Nh4 {[%emt 0:01:57]} Ne7 {[%emt 0:02:36]} 32. Bg6 {[%emt 0:01:10]} Nxg6 {[%emt 0:01:33]} 33. Nxg6 {[%emt 0:00:10]} Rf7 {[%emt 0:01:17]} 34. Nf4 {[%emt 0:00:47]} Be5 {[%emt 0:01:46]} 35. Nd5 {[%emt 0:00:50]} Ref8 {[%emt 0:00:31]} 36. Rdd1 {[%emt 0:01:28]} Bxd5 {[%emt 0:01:02]} 37. cxd5 {[%emt 0:00:34]} Bxh2+ {[%emt 0:00:36]} 38. Kxh2 {[%emt 0:00:22]} Rxf2 {[%emt 0:00:09]} 39. Rxf2 {[%emt 0:01:16]} Rxf2 {[%emt 0:00:06]} 40. Rd3 {[%emt 0:01:09]} Rf4 {[%emt 0:00:59]} 41. Kg3 {[%emt 0:31:13]} Rf5 {[%emt 0:31:31]} 42. Kg4 {[%emt 0:00:48]} g6 {[%emt 0:00:08]} 43. Kh3 {[%emt 0:00:42]} Kb7 {[%emt 0:00:23]} 44. g4 {[%emt 0:01:00]} Re5 {[%emt 0:00:17]} 45. Kg3 {[%emt 0:00:23]} Kb6 {[%emt 0:00:22]} 0-1

[Event "SVK-ch Open 2018"]
[Site "Banska Stiavnica"]
[Date "2018.07.11"]
[Round "5"]
[White "Pereszlenyi, Gejza"]
[Black "Pniaczek, Marek"]
[Result "0-1"]
[ECO "D02"]
[WhiteElo "1899"]
[BlackElo "2082"]
[Annotator "NA"]
[PlyCount "108"]
[EventDate "2018.07.07"]
[EventType "swiss"]
[EventCountry "SVK"]
[SourceTitle "playchess.com"]
[Source "ChessBase"]
[SourceQuality "1"]
[TimeControl "40/5400+30:1800+30"]

1. d4 {[%emt 0:00:21]} d5 {[%emt 0:00:00]} 2. Nf3 {[%emt 0:00:35]} Nf6 {[%emt 0:00:00]} 3. Bf4 {[%emt 0:00:40]} c5 {[%emt 0:00:00]} 4. e3 {[%emt 0:00:41]} Qb6 {[%emt 0:00:00]} 5. Nc3 {[%emt 0:01:58]} Bd7 {[%emt 0:00:15]} 6. Rb1 {[%emt 0:06:28]} e6 {[%emt 0:00:51]} 7. Be2 {[%emt 0:01:22]} Bd6 {[%emt 0:00:24]} 8. Ne5 {[%emt 0:01:16]} O-O {[%emt 0:00:18]} 9. O-O {[%emt 0:02:21]} Rc8 {[%emt 0:00:25]} 10. Re1 {[%emt 0:01:57]} Be8 {[%emt 0:01:26]} 11. a3 $11 {[%emt 0:07:40]} a6 {[%emt 0:03:18]} 12. Bg3 {[%emt 0:07:23]} Nfd7 {[%emt 0:08:56]} 13. Na4 {[%emt 0:26:11]} Qc7 {[%emt 0:02:00]} 14. Nxd7 {[%emt 0:03:32]} Nxd7 {[%emt 0:02:47]} 15. Bxd6 {[%emt 0:02:26]} Qxd6 {[%emt 0:00:13]} 16. Nxc5 {[%emt 0:00:37]} Nxc5 {[%emt 0:00:07]} 17. dxc5 {[%emt 0:00:07]} Qxc5 {[%emt 0:04:52]} 18. c3 {[%emt 0:00:50]} b5 {[%emt 0:11:32]} 19. Qd4 {[%emt 0:00:48]} a5 {[%emt 0:01:44]} 20. Ra1 {[%emt 0:09:10]} Rab8 {[%emt 0:04:26]} 21. Rec1 {[%emt 0:06:37]} b4 {[%emt 0:07:06]} 22. Qxc5 {[%emt 0:00:15]} Rxc5 {[%emt 0:00:06]} 23. cxb4 {[%emt 0:00:07]} Rxc1+ {[%emt 0:00:10]} 24. Rxc1 {[%emt 0:00:12]} axb4 {[%emt 0:00:03]} 25. axb4 {[%emt 0:02:47]} Rxb4 {[%emt 0:01:43]} 26. Rc2 {[%emt 0:00:36]} Kf8 {[%emt 0:00:40]} 27. f4 {[%emt 0:00:38]} Ba4 {[%emt 0:02:51]} 28. Rd2 {[%emt 0:00:52]} Ke7 {[%emt 0:01:47]} 29. Kf2 {[%emt 0:00:29]} Bc6 {[%emt 0:08:33]} 30. g4 {[%emt 0:03:20]} Kd6 {[%emt 0:02:33]} 31. Bd3 {[%emt 0:02:47]} h6 {[%emt 0:02:13]} 32. h4 {[%emt 0:03:27]} g5 {[%emt 0:06:36]} 33. hxg5 {[%emt 0:02:50]} hxg5 {[%emt 0:00:29]} 34. Kg3 {[%emt 0:00:08]} f6 {[%emt 0:01:26]} 35. fxg5 {[%emt 0:01:44]} fxg5 {[%emt 0:00:05]} 36. Be2 {[%emt 0:00:50]} e5 {[%emt 0:02:51]} 37. Bf3 {[%emt 0:00:30]} Rb3 {[%emt 0:01:42]} 38. Kf2 {[%emt 0:00:09]} Kc5 {[%emt 0:01:32]} 39. Rc2+ {[%emt 0:00:48]} Kb6 {[%emt 0:00:43]} 40. Bd1 {[%emt 0:00:06]} Rb4 {[%emt 0:01:08]} 41. b3 {[%emt 0:30:29]} Bd7 {[%emt 0:32:10]} 42. Rd2 {[%emt 0:00:38]} Kc5 {[%emt 0:01:16]} 43. Kg3 {[%emt 0:00:53]} Bb5 {[%emt 0:00:00]} 44. Rc2+ {[%emt 0:00:00]} Kd6 {[%emt 0:00:00]} 45. Rc8 {[%emt 0:00:00]} Re4 {[%emt 0:00:00]} 46. Rg8 {[%emt 0:00:00]} Rxe3+ {[%emt 0:00:00]} 47. Kf2 {[%emt 0:00:00]} Rd3 {[%emt 0:00:00]} 48. Ke1 {[%emt 0:00:00]} Kc5 {[%emt 0:00:00]} 49. Rxg5 {[%emt 0:00:00]} Kd4 {[%emt 0:00:00]} 50. Rg8 {[%emt 0:00:00]} Rh3 {[%emt 0:00:00]} 51. Rb8 {[%emt 0:00:00]} Ke3 {[%emt 0:00:21]} 52. Rg8 Kd4 53. Kf2 e4 54. g5 Ke5 0-1

[Event "SVK-ch Open 2018"]
[Site "Banska Stiavnica"]
[Date "2018.07.11"]
[Round "5"]
[White "Komlosi, Frantisek"]
[Black "Budinsky, Martin"]
[Result "0-1"]
[ECO "A46"]
[WhiteElo "1861"]
[BlackElo "1985"]
[Annotator "NA"]
[PlyCount "92"]
[EventDate "2018.07.07"]
[EventType "swiss"]
[EventCountry "SVK"]
[SourceTitle "playchess.com"]
[Source "ChessBase"]
[SourceQuality "1"]
[TimeControl "40/5400+30:1800+30"]

1. d4 {[%emt 0:00:00]} Nf6 {[%emt 0:00:00]} 2. Nf3 {[%emt 0:00:21]} e6 {[%emt 0:00:16]} 3. g3 {[%emt 0:03:14]} b6 {[%emt 0:00:38]} 4. Bg2 {[%emt 0:00:53]} Bb7 {[%emt 0:00:05]} 5. O-O {[%emt 0:02:36]} Be7 {[%emt 0:00:27]} 6. c4 {[%emt 0:03:36]} c5 {[%emt 0:02:26]} 7. e3 {[%emt 0:07:27]} O-O {[%emt 0:01:01]} 8. Nc3 {[%emt 0:01:00]} a6 {[%emt 0:00:19]} 9. b3 {[%emt 0:06:24]} Qc7 {[%emt 0:01:19]} 10. Bb2 {[%emt 0:03:03]} d6 {[%emt 0:02:32]} 11. d5 {[%emt 0:08:46]} exd5 {[%emt 0:01:59]} 12. cxd5 {[%emt 0:05:25]} b5 {[%emt 0:00:26]} 13. Nh4 {[%emt 0:03:05]} Re8 {[%emt 0:01:24]} 14. Nf5 {[%emt 0:03:26]} Bf8 {[%emt 0:00:24]} 15. e4 {[%emt 0:10:45]} Nbd7 {[%emt 0:00:26]} 16. Re1 {[%emt 0:01:18]} g6 {[%emt 0:00:46]} 17. Nh4 {[%emt 0:01:54]} Bg7 {[%emt 0:03:13]} 18. Qd2 {[%emt 0:04:54]} Rac8 {[%emt 0:03:14]} 19. Rac1 {[%emt 0:04:51]} Qb6 {[%emt 0:03:21]} 20. Nb1 {[%emt 0:01:06]} a5 {[%emt 0:10:31]} 21. Na3 {[%emt 0:03:24]} Ba6 {[%emt 0:01:31]} 22. h3 {[%emt 0:01:12]} c4 {[%emt 0:12:46]} 23. Bd4 {[%emt 0:04:55]} Nc5 {[%emt 0:00:27]} 24. bxc4 {[%emt 0:00:38]} b4 {[%emt 0:00:21]} 25. Nb5 {[%emt 0:06:39]} Bxb5 {[%emt 0:03:11]} 26. cxb5 {[%emt 0:00:10]} Qxb5 {[%emt 0:00:39]} 27. Kh2 {[%emt 0:10:30]} Qd3 {[%emt 0:19:44]} 28. Qxd3 {[%emt 0:01:36]} Nxd3 {[%emt 0:01:24]} 29. Rxc8 {[%emt 0:00:09]} Rxc8 {[%emt 0:00:06]} 30. Re2 {[%emt 0:00:53]} Nc1 {[%emt 0:04:19]} 31. Rd2 {[%emt 0:00:25]} a4 {[%emt 0:00:16]} 32. f4 {[%emt 0:00:27]} b3 {[%emt 0:01:33]} 33. e5 {[%emt 0:00:19]} Ne8 {[%emt 0:01:35]} 34. Be4 {[%emt 0:00:27]} Nxa2 {[%emt 0:06:09]} 35. Bb2 {[%emt 0:00:35]} Nc3 {[%emt 0:02:17]} 36. Bd3 {[%emt 0:00:50]} dxe5 {[%emt 0:06:09]} 37. fxe5 {[%emt 0:00:14]} Bh6 {[%emt 0:00:19]} 38. Rg2 {[%emt 0:00:47]} Nxd5 {[%emt 0:00:22]} 39. Nf3 {[%emt 0:00:28]} Bf8 {[%emt 0:01:30]} 40. Nd4 {[%emt 0:00:32]} a3 {[%emt 0:00:53]} 41. Bxa3 {[%emt 0:30:39]} Bxa3 {[%emt 0:30:22]} 42. e6 {[%emt 0:00:00]} fxe6 {[%emt 0:00:00]} 43. Nxe6 {[%emt 0:00:00]} b2 {[%emt 0:00:00]} 44. Rf2 {[%emt 0:00:00]} Nef6 {[%emt 0:00:00]} 45. g4 {[%emt 0:00:00]} Re8 {[%emt 0:00:00]} 46. Ng5 Re1 0-1

[Event "SVK-ch Open 2018"]
[Site "Banska Stiavnica"]
[Date "2018.07.11"]
[Round "5"]
[White "Bango, Dominik"]
[Black "Pericka, Tomas"]
[Result "1-0"]
[ECO "B35"]
[WhiteElo "1835"]
[BlackElo "1975"]
[Annotator "NA"]
[PlyCount "71"]
[EventDate "2018.07.07"]
[EventType "swiss"]
[EventCountry "SVK"]
[SourceTitle "playchess.com"]
[Source "ChessBase"]
[SourceQuality "1"]
[TimeControl "40/5400+30:1800+30"]

1. e4 {[%emt 0:00:00]} c5 {[%emt 0:00:00]} 2. Nf3 {[%emt 0:00:00]} Nc6 {[%emt 0:00:00]} 3. d4 {[%emt 0:00:00]} cxd4 {[%emt 0:00:00]} 4. Nxd4 {[%emt 0:00:00]} g6 {[%emt 0:00:00]} 5. Nc3 {[%emt 0:00:00]} Bg7 {[%emt 0:00:00]} 6. Be3 {[%emt 0:00:03]} Nf6 {[%emt 0:00:03]} 7. Bc4 {[%emt 0:00:07]} Qa5 {[%emt 0:00:19]} 8. O-O {[%emt 0:00:27]} O-O {[%emt 0:00:05]} 9. Bb3 {[%emt 0:00:59]} d6 {[%emt 0:00:49]} 10. f3 {[%emt 0:01:13]} Bd7 {[%emt 0:01:35]} 11. Nd5 {[%emt 0:01:44]} Nxd5 {[%emt 0:04:13]} 12. exd5 {[%emt 0:02:00]} Ne5 {[%emt 0:00:08]} 13. c3 {[%emt 0:03:35]} Rac8 {[%emt 0:02:48]} 14. Qe2 {[%emt 0:02:38]} b5 {[%emt 0:04:25]} 15. Nc2 {[%emt 0:03:03]} Bf5 {[%emt 0:04:18]} 16. Rfd1 {[%emt 0:03:27]} Nc4 {[%emt 0:01:39]} 17. Nd4 {[%emt 0:04:59]} Nxe3 {[%emt 0:11:44]} 18. Qxe3 {[%emt 0:00:41]} b4 {[%emt 0:07:07]} 19. Nc6 {[%emt 0:05:25]} Rxc6 {[%emt 0:00:06]} 20. dxc6 {[%emt 0:00:05]} bxc3 {[%emt 0:00:31]} 21. bxc3 {[%emt 0:00:53]} Bxc3 {[%emt 0:02:04]} 22. Rac1 {[%emt 0:01:52]} Be5 {[%emt 0:05:46]} 23. g4 {[%emt 0:04:23]} Bc8 {[%emt 0:00:18]} 24. f4 {[%emt 0:01:58]} Bf6 {[%emt 0:01:23]} 25. g5 {[%emt 0:00:47]} Bb2 {[%emt 0:00:09]} 26. Rc2 {[%emt 0:01:05]} Ba3 {[%emt 0:00:05]} 27. Qxe7 {[%emt 0:08:02]} Bc5+ {[%emt 0:00:15]} 28. Kg2 {[%emt 0:01:54]} Bg4 {[%emt 0:03:58]} 29. Rd5 {[%emt 0:02:34]} Qb5 {[%emt 0:05:17]} 30. Rcxc5 {[%emt 0:05:52]} dxc5 {[%emt 0:00:25]} 31. Rd8 {[%emt 0:00:40]} Bh3+ {[%emt 0:03:11]} 32. Kg3 {[%emt 0:00:50]} Rxd8 {[%emt 0:00:14]} 33. Qxd8+ {[%emt 0:00:06]} Kg7 {[%emt 0:00:04]} 34. Qf6+ {[%emt 0:00:07]} Kg8 {[%emt 0:00:04]} 35. Qxf7+ {[%emt 0:00:06]} Kh8 {[%emt 0:00:05]} 36. Qg8# {[%emt 0:00:04]} 1-0

[Event "SVK-ch Open 2018"]
[Site "Banska Stiavnica"]
[Date "2018.07.11"]
[Round "5"]
[White "Kebis, Milos"]
[Black "Sandor, Martin"]
[Result "0-1"]
[ECO "A28"]
[WhiteElo "1828"]
[BlackElo "1968"]
[Annotator "NA"]
[PlyCount "82"]
[EventDate "2018.07.07"]
[EventType "swiss"]
[EventCountry "SVK"]
[SourceTitle "playchess.com"]
[Source "ChessBase"]
[SourceQuality "1"]
[TimeControl "40/5400+30:1800+30"]

1. c4 {[%emt 0:04:32]} e5 {[%emt 0:00:00]} 2. Nc3 {[%emt 0:00:16]} Nf6 {[%emt 0:00:00]} 3. Nf3 {[%emt 0:00:31]} Nc6 {[%emt 0:00:02]} 4. d4 {[%emt 0:04:03]} exd4 {[%emt 0:00:45]} 5. Nxd4 {[%emt 0:00:10]} Bb4 {[%emt 0:00:53]} 6. e3 {[%emt 0:03:11]} O-O {[%emt 0:02:33]} 7. Be2 {[%emt 0:00:42]} d5 {[%emt 0:03:22]} 8. O-O {[%emt 0:03:22]} Re8 {[%emt 0:05:21]} 9. a3 {[%emt 0:05:57]} Bxc3 {[%emt 0:01:14]} 10. bxc3 {[%emt 0:00:12]} Ne5 {[%emt 0:04:40]} 11. cxd5 {[%emt 0:10:34]} Nxd5 {[%emt 0:01:06]} 12. Bb2 {[%emt 0:01:24]} Nb6 {[%emt 0:08:15]} 13. Qb3 {[%emt 0:00:58]} Be6 {[%emt 0:07:29]} 14. Nxe6 {[%emt 0:05:24]} Rxe6 {[%emt 0:01:31]} 15. c4 {[%emt 0:00:30]} Qe7 {[%emt 0:14:50]} 16. a4 {[%emt 0:04:49]} c5 {[%emt 0:03:47]} 17. Qc3 {[%emt 0:07:06]} f6 {[%emt 0:01:45]} 18. a5 {[%emt 0:00:34]} Nbd7 {[%emt 0:01:23]} 19. Rad1 {[%emt 0:00:19]} Rd8 {[%emt 0:06:30]} 20. Rd5 {[%emt 0:01:44]} Rd6 {[%emt 0:03:29]} 21. Rxd6 {[%emt 0:07:34]} Qxd6 {[%emt 0:00:09]} 22. Rd1 {[%emt 0:00:08]} Qc7 {[%emt 0:00:56]} 23. f4 {[%emt 0:05:56]} Nc6 {[%emt 0:04:18]} 24. Bg4 {[%emt 0:03:54]} Nf8 {[%emt 0:02:00]} 25. Rd5 {[%emt 0:07:15]} Nb4 {[%emt 0:03:32]} 26. Rd2 {[%emt 0:04:14]} Qxa5 {[%emt 0:03:15]} 27. h4 {[%emt 0:00:12]} Rxd2 {[%emt 0:03:05]} 28. Qxd2 {[%emt 0:00:05]} Qa2 {[%emt 0:01:06]} 29. Qc3 {[%emt 0:01:52]} Qb1+ {[%emt 0:01:15]} 30. Kh2 {[%emt 0:00:59]} Nd3 {[%emt 0:04:23]} 31. Bf5 {[%emt 0:03:04]} Qxb2 {[%emt 0:00:52]} 32. Qxd3 {[%emt 0:00:06]} g6 {[%emt 0:03:04]} 33. Qd5+ {[%emt 0:00:08]} Kg7 {[%emt 0:00:17]} 34. Be4 {[%emt 0:00:05]} Qb6 {[%emt 0:05:00]} 35. Bf3 {[%emt 0:04:47]} Qc7 {[%emt 0:01:08]} 36. h5 {[%emt 0:03:38]} b6 {[%emt 0:01:08]} 37. Qa8 {[%emt 0:01:56]} Qe7 {[%emt 0:01:00]} 38. e4 {[%emt 0:01:32]} Ne6 {[%emt 0:01:11]} 39. Kg3 {[%emt 0:03:35]} Qc7 {[%emt 0:01:04]} 40. Kh2 Qe7 41. g3 Nd4 0-1

[Event "SVK-ch Open 2018"]
[Site "Banska Stiavnica"]
[Date "2018.07.12"]
[Round "6"]
[White "Aczel, Gergely"]
[Black "Pacher, Milan"]
[Result "1-0"]
[ECO "E46"]
[WhiteElo "2543"]
[BlackElo "2467"]
[Annotator "ChessBase"]
[PlyCount "57"]
[EventDate "2018.07.07"]
[EventType "swiss"]
[EventCountry "SVK"]
[SourceTitle "playchess.com"]
[Source "ChessBase"]
[SourceQuality "1"]
[TimeControl "40/5400+30:1800+30"]

1. d4 {[%emt 0:00:00]} Nf6 {[%emt 0:00:37]} 2. c4 {[%emt 0:02:00]} e6 {[%emt 0:00:08]} 3. Nc3 {[%emt 0:00:09]} Bb4 {[%emt 0:00:06]} 4. e3 {[%emt 0:00:06]} O-O {[%emt 0:00:07]} 5. Bd2 {[%emt 0:00:04]} b6 {[%emt 0:00:15]} 6. Bd3 {[%emt 0:00:14]} Bb7 {[%emt 0:00:08]} 7. Nf3 {[%emt 0:00:07]} d6 {[%emt 0:00:26]} 8. O-O {[%emt 0:00:13]} Nbd7 {[%emt 0:00:07]} 9. a3 {[%emt 0:00:42]} Bxc3 {[%emt 0:00:07]} 10. Bxc3 {[%emt 0:00:05]} Ne4 {[%emt 0:00:24]} 11. Be1 {[%emt 0:08:54]} f5 {[%emt 0:00:32]} 12. Nd2 {[%emt 0:01:25]} Qf6 {[%emt 0:08:39]} 13. f3 {[%emt 0:14:08]} Nxd2 {[%emt 0:01:43]} 14. Bxd2 {[%emt 0:02:29]} e5 {[%emt 0:01:27]} 15. d5 {[%emt 0:17:36]} Rae8 {[%emt 0:15:22]} 16. b4 {[%emt 0:05:16]} Bc8 {[%emt 0:01:03]} 17. Rc1 {[%emt 0:08:27]} f4 {[%emt 0:08:38]} 18. Qa4 {[%emt 0:04:39]} Qh6 {[%emt 0:07:34]} 19. Rce1 {[%emt 0:09:58]} g5 {[%emt 0:03:29]} 20. Qxa7 {[%emt 0:01:44]} Qh5 {[%emt 0:03:44]} 21. exf4 {[%emt 0:03:17]} gxf4 {[%emt 0:00:22]} 22. Qxc7 {[%emt 0:02:49]} Rf6 {[%emt 0:00:12]} 23. Rf2 {[%emt 0:00:20]} Kh8 {[%emt 0:02:52]} 24. c5 {[%emt 0:03:19]} Rg8 {[%emt 0:01:20]} 25. c6 {[%emt 0:04:30]} Nf8 {[%emt 0:00:48]} 26. Qxc8 {[%emt 0:00:54]} Rh6 {[%emt 0:01:18]} 27. h3 {[%emt 0:02:19]} Ne6 {[%emt 0:00:36]} 28. Qxg8+ {[%emt 0:00:48]} Kxg8 {[%emt 0:00:05]} 29. dxe6 {[%emt 0:00:06]} 1-0